[Event "*** Titled Tuesday Blitz"]
[Site "Chess.com"]
[Date "2019.10.01"]
[Round "1"]
[White "csati17"]
[Black "Micki-taryan"]
[Result "0-1"]
[WhiteElo "2479"]
[BlackElo "2948"]
[TimeControl "180+2"]
[EndTime "13:04:57 PDT"]
[Termination "Micki-taryan won by resignation"]

1. c4 {[%clk 0:03:01.9]} 1... e5 {[%clk 0:02:59]} 2. g3 {[%clk 0:03:02]} 2...
Nf6 {[%clk 0:02:57]} 3. Bg2 {[%clk 0:03:02.9]} 3... d5 {[%clk 0:02:57.9]} 4.
cxd5 {[%clk 0:03:04.2]} 4... Nxd5 {[%clk 0:02:59.8]} 5. Nc3 {[%clk 0:03:05.9]}
5... Nb6 {[%clk 0:03:00.9]} 6. Nf3 {[%clk 0:03:07.1]} 6... Nc6 {[%clk
0:03:01.9]} 7. a3 {[%clk 0:03:08.1]} 7... a5 {[%clk 0:03:01.7]} 8. O-O {[%clk
0:03:08.1]} 8... Be7 {[%clk 0:03:02.5]} 9. d3 {[%clk 0:03:08.6]} 9... O-O {[%clk
0:03:02.9]} 10. Be3 {[%clk 0:03:09]} 10... Be6 {[%clk 0:03:01.8]} 11. Nd2 {[%clk
0:03:05.4]} 11... Nd5 {[%clk 0:03:01.2]} 12. Nxd5 {[%clk 0:03:04.9]} 12... Bxd5
{[%clk 0:03:03.1]} 13. Bxd5 {[%clk 0:03:05]} 13... Qxd5 {[%clk 0:03:05]} 14. Qa4
{[%clk 0:03:05.2]} 14... Nd4 {[%clk 0:03:02.7]} 15. Bxd4 {[%clk 0:03:05.2]}
15... exd4 {[%clk 0:03:04.6]} 16. Rac1 {[%clk 0:03:00.4]} 16... c6 {[%clk
0:03:05.4]} 17. Nf3 {[%clk 0:02:55.5]} 17... Bf6 {[%clk 0:03:05.4]} 18. b4
{[%clk 0:02:21.3]} 18... Rfe8 {[%clk 0:03:01]} 19. Rfe1 {[%clk 0:02:19.9]} 19...
axb4 {[%clk 0:02:58.8]} 20. Qxb4 {[%clk 0:02:19.6]} 20... Qd7 {[%clk 0:02:59.4]}
21. Rc4 {[%clk 0:02:10]} 21... h5 {[%clk 0:02:53.3]} 22. Nxd4 {[%clk 0:02:05.2]}
22... b5 {[%clk 0:02:47.5]} 23. Nxb5 {[%clk 0:01:12.6]} 23... cxb5 {[%clk
0:02:47.1]} 24. Rc5 {[%clk 0:01:14.1]} 24... Rab8 {[%clk 0:02:36.1]} 25. Rxh5
{[%clk 0:01:12.5]} 25... g6 {[%clk 0:02:34.4]} 0-1

[Event "*** Titled Tuesday Blitz"]
[Site "Chess.com"]
[Date "2019.10.01"]
[Round "1"]
[White "pedroholly22"]
[Black "German_Bazeev"]
[Result "0-1"]
[WhiteElo "2301"]
[BlackElo "2657"]
[TimeControl "180+2"]
[EndTime "13:05:20 PDT"]
[Termination "German_Bazeev won by checkmate"]

1. e4 {[%clk 0:02:57.4]} 1... e5 {[%clk 0:02:34.4]} 2. Nf3 {[%clk 0:02:56.6]}
2... Nc6 {[%clk 0:02:35.4]} 3. Bb5 {[%clk 0:02:56.4]} 3... a6 {[%clk 0:02:36.3]}
4. Ba4 {[%clk 0:02:56.8]} 4... Bc5 {[%clk 0:02:37.2]} 5. O-O {[%clk 0:02:55.8]}
5... d6 {[%clk 0:02:38.4]} 6. c3 {[%clk 0:02:54.7]} 6... Bg4 {[%clk 0:02:39.4]}
7. d4 {[%clk 0:02:53]} 7... Bxf3 {[%clk 0:02:39.8]} 8. gxf3 {[%clk 0:02:50]}
8... Ba7 {[%clk 0:02:39.1]} 9. d5 {[%clk 0:02:50.1]} 9... b5 {[%clk 0:02:38.7]}
10. dxc6 {[%clk 0:02:50.7]} 10... bxa4 {[%clk 0:02:39.7]} 11. Qxa4 {[%clk
0:02:52.1]} 11... Ne7 {[%clk 0:02:41.2]} 12. Be3 {[%clk 0:02:48.9]} 12... O-O
{[%clk 0:02:40.6]} 13. Nd2 {[%clk 0:02:48.5]} 13... f5 {[%clk 0:02:41.3]} 14.
exf5 {[%clk 0:02:47.5]} 14... Nxf5 {[%clk 0:02:41.9]} 15. Bxa7 {[%clk 0:02:45]}
15... Rxa7 {[%clk 0:02:43.7]} 16. Rad1 {[%clk 0:02:34.6]} 16... Ra8 {[%clk
0:01:49]} 17. Kh1 {[%clk 0:02:25.6]} 17... Nh4 {[%clk 0:01:47.4]} 18. Rg1 {[%clk
0:02:12.6]} 18... Nxf3 {[%clk 0:01:43.1]} 19. Nxf3 {[%clk 0:02:12.5]} 19... Rxf3
{[%clk 0:01:45]} 20. Qg4 {[%clk 0:02:13.8]} 20... Qf8 {[%clk 0:01:43.8]} 21. Rd2
{[%clk 0:02:03]} 21... g6 {[%clk 0:01:43.3]} 22. Rg2 {[%clk 0:02:01.3]} 22...
Qf7 {[%clk 0:01:43.8]} 23. b3 {[%clk 0:01:57.7]} 23... Rf4 {[%clk 0:01:42.8]}
24. Qg3 {[%clk 0:01:55.5]} 24... Rf8 {[%clk 0:01:43.1]} 25. c4 {[%clk
0:01:52.8]} 25... Qe8 {[%clk 0:01:42.2]} 26. Qh3 {[%clk 0:01:34.7]} 26... Qxc6
{[%clk 0:01:40.8]} 27. Kg1 {[%clk 0:01:34.7]} 27... Kg7 {[%clk 0:01:37.4]} 28.
Qe6 {[%clk 0:01:32]} 28... Qe4 {[%clk 0:01:35.4]} 29. Qd5 {[%clk 0:01:28]} 29...
Qe1# {[%clk 0:01:35.7]} 0-1

[Event "*** Titled Tuesday Blitz"]
[Site "Chess.com"]
[Date "2019.10.01"]
[Round "1"]
[White "monalize"]
[Black "cherryandmint"]
[Result "0-1"]
[WhiteElo "2400"]
[BlackElo "2757"]
[TimeControl "180+2"]
[EndTime "13:05:23 PDT"]
[Termination "cherryandmint won by resignation"]

1. e4 {[%clk 0:02:59.5]} 1... e5 {[%clk 0:03:00.2]} 2. Nf3 {[%clk 0:02:59.8]}
2... Nc6 {[%clk 0:03:01.4]} 3. Bb5 {[%clk 0:03:00.2]} 3... a6 {[%clk 0:03:02.3]}
4. Ba4 {[%clk 0:03:00.8]} 4... Nf6 {[%clk 0:03:02.7]} 5. Bxc6 {[%clk 0:03:00.5]}
5... dxc6 {[%clk 0:03:03]} 6. d3 {[%clk 0:03:01.4]} 6... Bd6 {[%clk 0:03:03.2]}
7. O-O {[%clk 0:03:01.9]} 7... Be6 {[%clk 0:02:56.7]} 8. Nbd2 {[%clk 0:02:59.2]}
8... Qe7 {[%clk 0:02:54.9]} 9. b3 {[%clk 0:02:59.4]} 9... Nd7 {[%clk 0:02:53.1]}
10. Bb2 {[%clk 0:02:58.8]} 10... f6 {[%clk 0:02:52.7]} 11. d4 {[%clk 0:02:59.7]}
11... O-O-O {[%clk 0:02:50]} 12. Qe2 {[%clk 0:02:59.7]} 12... g5 {[%clk
0:02:48.1]} 13. dxe5 {[%clk 0:02:57.4]} 13... fxe5 {[%clk 0:02:47.3]} 14. Nc4
{[%clk 0:02:54.8]} 14... g4 {[%clk 0:02:47.8]} 15. Nfxe5 {[%clk 0:02:48.5]}
15... Nxe5 {[%clk 0:02:22.7]} 16. Nxe5 {[%clk 0:02:47]} 16... Rhe8 {[%clk
0:02:20.1]} 17. Nxg4 {[%clk 0:02:42.9]} 17... Qh4 {[%clk 0:01:36.4]} 18. h3
{[%clk 0:02:42.8]} 18... Rg8 {[%clk 0:01:34.8]} 19. Bf6 {[%clk 0:02:29.3]} 19...
Bxg4 {[%clk 0:01:30.2]} 20. Bxh4 {[%clk 0:02:27.6]} 20... Bxe2 {[%clk
0:01:30.8]} 21. Rfe1 {[%clk 0:02:28.6]} 21... Bf3 {[%clk 0:01:27.5]} 22. g3
{[%clk 0:02:25.6]} 22... Rde8 {[%clk 0:01:25.9]} 23. Re3 {[%clk 0:02:22.9]}
23... Bxe4 {[%clk 0:01:26.4]} 24. Rae1 {[%clk 0:02:23.7]} 24... Bg6 {[%clk
0:01:27.9]} 25. f4 {[%clk 0:02:19.5]} 25... Rxe3 {[%clk 0:01:24.8]} 26. Rxe3
{[%clk 0:02:19]} 26... Bxc2 {[%clk 0:01:26.1]} 27. Kh2 {[%clk 0:02:18.3]} 27...
c5 {[%clk 0:01:19.9]} 28. Re2 {[%clk 0:02:16.9]} 28... Bb1 {[%clk 0:01:19.5]}
29. Rb2 {[%clk 0:02:16.2]} 29... Bg6 {[%clk 0:01:18.7]} 30. Re2 {[%clk
0:02:14.5]} 30... Re8 {[%clk 0:01:18.9]} 31. Rf2 {[%clk 0:02:14.1]} 31... Bf7
{[%clk 0:01:11.8]} 32. Bf6 {[%clk 0:02:13.6]} 32... c4 {[%clk 0:01:12.3]} 33.
bxc4 {[%clk 0:02:13.2]} 33... Bxc4 {[%clk 0:01:14.2]} 34. g4 {[%clk 0:02:14]}
34... Re2 {[%clk 0:01:12]} 35. Rxe2 {[%clk 0:02:13.1]} 35... Bxf4+ {[%clk
0:01:13.4]} 36. Kg2 {[%clk 0:02:12.9]} 36... Bxe2 {[%clk 0:01:14.9]} 37. h4
{[%clk 0:02:13.5]} 37... Bxg4 {[%clk 0:01:15.3]} 38. a3 {[%clk 0:02:12.3]} 38...
h5 {[%clk 0:01:15.6]} 0-1

[Event "*** Titled Tuesday Blitz"]
[Site "Chess.com"]
[Date "2019.10.01"]
[Round "1"]
[White "Hikaru"]
[Black "JozefKneht"]
[Result "1-0"]
[WhiteElo "3170"]
[BlackElo "2504"]
[TimeControl "180+2"]
[EndTime "13:05:24 PDT"]
[Termination "Hikaru won by resignation"]

1. Nf3 {[%clk 0:02:59.4]} 1... d5 {[%clk 0:02:59.7]} 2. e3 {[%clk 0:02:54.3]}
2... Nf6 {[%clk 0:02:59.6]} 3. c4 {[%clk 0:02:53.6]} 3... e6 {[%clk 0:02:59.4]}
4. b3 {[%clk 0:02:52.4]} 4... Be7 {[%clk 0:02:59.4]} 5. Bb2 {[%clk 0:02:50.6]}
5... O-O {[%clk 0:03:00.8]} 6. Nc3 {[%clk 0:02:49.1]} 6... c5 {[%clk 0:02:59.2]}
7. cxd5 {[%clk 0:02:49.4]} 7... Nxd5 {[%clk 0:02:59.5]} 8. Nxd5 {[%clk
0:02:45.9]} 8... Qxd5 {[%clk 0:02:59.9]} 9. Qc2 {[%clk 0:02:40.4]} 9... Nc6
{[%clk 0:02:59.1]} 10. a3 {[%clk 0:02:40.9]} 10... e5 {[%clk 0:02:51.8]} 11. Bd3
{[%clk 0:02:38.4]} 11... Bf6 {[%clk 0:02:33.4]} 12. Bxh7+ {[%clk 0:02:37.7]}
12... Kh8 {[%clk 0:02:33.8]} 13. Be4 {[%clk 0:02:39.6]} 13... Qd6 {[%clk
0:02:34.2]} 14. h4 {[%clk 0:02:40]} 14... Rd8 {[%clk 0:02:11]} 15. Ng5 {[%clk
0:02:40.1]} 15... Kg8 {[%clk 0:02:11.4]} 16. O-O-O {[%clk 0:02:19.2]} 16... Be6
{[%clk 0:02:10.9]} 17. f4 {[%clk 0:02:18.5]} 17... Rac8 {[%clk 0:02:08.7]} 18.
Bxc6 {[%clk 0:02:17.5]} 18... Rxc6 {[%clk 0:02:06.8]} 19. f5 {[%clk 0:02:04.9]}
19... c4 {[%clk 0:01:58.1]} 20. b4 {[%clk 0:02:04.9]} 20... Bd7 {[%clk
0:01:54.6]} 21. Ne4 {[%clk 0:02:05.5]} 21... Qe7 {[%clk 0:01:55]} 22. g4 {[%clk
0:02:06.5]} 22... Qf8 {[%clk 0:01:41.9]} 23. Nxf6+ {[%clk 0:02:05.3]} 23... Rxf6
{[%clk 0:01:34.8]} 24. Bxe5 {[%clk 0:02:05.9]} 24... Ra6 {[%clk 0:01:34.7]} 25.
Qb2 {[%clk 0:02:07.3]} 25... Ba4 {[%clk 0:01:30.9]} 26. Rdf1 {[%clk 0:02:07.3]}
26... Rd3 {[%clk 0:01:32.4]} 27. Bc3 {[%clk 0:02:08.2]} 27... Bc6 {[%clk
0:01:32.9]} 28. Rh2 {[%clk 0:02:07]} 28... Rb6 {[%clk 0:01:34]} 29. h5 {[%clk
0:02:07.4]} 29... a5 {[%clk 0:01:34.8]} 30. g5 {[%clk 0:02:07.6]} 30... axb4
{[%clk 0:01:35.5]} 31. axb4 {[%clk 0:02:08.8]} 31... Be4 {[%clk 0:01:33.4]} 32.
h6 {[%clk 0:02:09.9]} 32... gxh6 {[%clk 0:01:29.5]} 33. Rg1 {[%clk 0:02:10.7]}
33... h5 {[%clk 0:01:14.9]} 34. Rxh5 {[%clk 0:02:11]} 1-0

[Event "*** Titled Tuesday Blitz"]
[Site "Chess.com"]
[Date "2019.10.01"]
[Round "1"]
[White "Svet99"]
[Black "RitvarsReimanis"]
[Result "0-1"]
[WhiteElo "2174"]
[BlackElo "2573"]
[TimeControl "180+2"]
[EndTime "13:05:34 PDT"]
[Termination "RitvarsReimanis won by resignation"]

1. c4 {[%clk 0:03:00.2]} 1... e6 {[%clk 0:03:00.8]} 2. Nc3 {[%clk 0:03:00.6]}
2... d5 {[%clk 0:03:02]} 3. e3 {[%clk 0:03:01.2]} 3... Nf6 {[%clk 0:03:03.3]} 4.
b3 {[%clk 0:03:02.2]} 4... Be7 {[%clk 0:03:04.6]} 5. Bb2 {[%clk 0:03:03.2]} 5...
O-O {[%clk 0:03:06.2]} 6. Nf3 {[%clk 0:03:04]} 6... c5 {[%clk 0:03:07.7]} 7. d3
{[%clk 0:03:01.5]} 7... Nc6 {[%clk 0:03:08.3]} 8. g3 {[%clk 0:03:01.1]} 8... Rb8
{[%clk 0:03:04]} 9. Bg2 {[%clk 0:03:01.5]} 9... a6 {[%clk 0:03:05.4]} 10. O-O
{[%clk 0:02:57.1]} 10... b5 {[%clk 0:03:05.9]} 11. cxd5 {[%clk 0:02:57.1]} 11...
exd5 {[%clk 0:03:03.1]} 12. d4 {[%clk 0:02:57.9]} 12... b4 {[%clk 0:02:49.4]}
13. Ne2 {[%clk 0:02:32.9]} 13... c4 {[%clk 0:02:44.3]} 14. Qc2 {[%clk
0:02:33.3]} 14... c3 {[%clk 0:02:41.2]} 15. Bc1 {[%clk 0:02:33.8]} 15... Bd6
{[%clk 0:02:16.5]} 16. Nh4 {[%clk 0:02:27.2]} 16... a5 {[%clk 0:02:08.6]} 17. a4
{[%clk 0:02:09.8]} 17... Re8 {[%clk 0:02:06.3]} 18. Ra2 {[%clk 0:02:09.5]} 18...
Ne4 {[%clk 0:01:59.9]} 19. Qd3 {[%clk 0:02:05.6]} 19... Rb6 {[%clk 0:01:58]} 20.
Nf4 {[%clk 0:02:04.2]} 20... Ba6 {[%clk 0:01:57.2]} 21. Qd1 {[%clk 0:02:03.9]}
21... Bxf1 {[%clk 0:01:53.7]} 22. Qxf1 {[%clk 0:02:02.2]} 22... Bxf4 {[%clk
0:01:52.1]} 23. exf4 {[%clk 0:02:01.9]} 23... Nxd4 {[%clk 0:01:34.7]} 24. Be3
{[%clk 0:02:02]} 24... Nxb3 {[%clk 0:01:35.7]} 25. Qd1 {[%clk 0:01:39]} 25...
Nbd2 {[%clk 0:01:04.8]} 26. Rxd2 {[%clk 0:01:33.3]} 26... Nxd2 {[%clk
0:01:03.2]} 0-1

[Event "*** Titled Tuesday Blitz"]
[Site "Chess.com"]
[Date "2019.10.01"]
[Round "1"]
[White "M1711"]
[Black "CzechmVIII"]
[Result "1-0"]
[WhiteElo "2542"]
[BlackElo "2104"]
[TimeControl "180+2"]
[EndTime "13:05:36 PDT"]
[Termination "M1711 won by checkmate"]

1. e4 {[%clk 0:03:01.9]} 1... c5 {[%clk 0:03:00.5]} 2. Nf3 {[%clk 0:03:02.8]}
2... d6 {[%clk 0:03:01.6]} 3. c3 {[%clk 0:03:03.3]} 3... Nf6 {[%clk 0:03:01.7]}
4. Be2 {[%clk 0:03:04.2]} 4... Nbd7 {[%clk 0:03:02.7]} 5. d3 {[%clk 0:03:00.5]}
5... g6 {[%clk 0:03:03.8]} 6. O-O {[%clk 0:03:01.3]} 6... Bg7 {[%clk 0:03:05]}
7. Re1 {[%clk 0:03:01.8]} 7... b6 {[%clk 0:03:06.2]} 8. Nbd2 {[%clk 0:02:55.4]}
8... Bb7 {[%clk 0:03:07.1]} 9. Bf1 {[%clk 0:02:55.6]} 9... Ne5 {[%clk 0:03:07]}
10. d4 {[%clk 0:02:52.2]} 10... Nxf3+ {[%clk 0:03:00.3]} 11. Qxf3 {[%clk
0:02:54.1]} 11... cxd4 {[%clk 0:02:45.6]} 12. cxd4 {[%clk 0:02:56]} 12... Nd7
{[%clk 0:02:47]} 13. Nb3 {[%clk 0:02:55.2]} 13... O-O {[%clk 0:02:41.1]} 14. Be3
{[%clk 0:02:44.7]} 14... e5 {[%clk 0:02:24.6]} 15. dxe5 {[%clk 0:02:05]} 15...
Nxe5 {[%clk 0:02:23.6]} 16. Qf4 {[%clk 0:02:02.5]} 16... Rc8 {[%clk 0:02:02.8]}
17. Rad1 {[%clk 0:01:59.7]} 17... Qe7 {[%clk 0:02:03.5]} 18. Bd4 {[%clk
0:01:58.2]} 18... f5 {[%clk 0:01:40]} 19. exf5 {[%clk 0:01:52.3]} 19... Rxf5
{[%clk 0:01:40.4]} 20. Qg3 {[%clk 0:01:50.7]} 20... Rg5 {[%clk 0:01:32.6]} 21.
Qh3 {[%clk 0:01:37.6]} 21... Nf3+ {[%clk 0:01:21.4]} 22. Qxf3 {[%clk 0:01:28.8]}
22... Qxe1 {[%clk 0:01:19.1]} 23. Qxb7 {[%clk 0:01:26.4]} 23... Qxd1 {[%clk
0:01:08.3]} 24. Qxc8+ {[%clk 0:01:23.8]} 24... Bf8 {[%clk 0:01:05.7]} 25. Qe6#
{[%clk 0:01:08.5]} 1-0

[Event "*** Titled Tuesday Blitz"]
[Site "Chess.com"]
[Date "2019.10.01"]
[Round "1"]
[White "PNEPaul"]
[Black "Grebeniuk-S"]
[Result "0-1"]
[WhiteElo "1870"]
[BlackElo "2510"]
[TimeControl "180+2"]
[EndTime "13:05:48 PDT"]
[Termination "Grebeniuk-S won by checkmate"]

1. e4 {[%clk 0:03:01.9]} 1... c5 {[%clk 0:03:00.7]} 2. d4 {[%clk 0:03:02.8]}
2... cxd4 {[%clk 0:03:00.9]} 3. c3 {[%clk 0:03:03.9]} 3... Nf6 {[%clk
0:03:01.2]} 4. Bd3 {[%clk 0:03:03.3]} 4... Nc6 {[%clk 0:03:00.7]} 5. cxd4 {[%clk
0:03:01.4]} 5... Nxd4 {[%clk 0:02:58.3]} 6. e5 {[%clk 0:03:01.4]} 6... Qa5+
{[%clk 0:02:59.3]} 7. Nc3 {[%clk 0:02:57.1]} 7... Qxe5+ {[%clk 0:03:00.3]} 8.
Be3 {[%clk 0:02:57.9]} 8... Nf5 {[%clk 0:02:44.7]} 9. Bxf5 {[%clk 0:02:53.6]}
9... Qxf5 {[%clk 0:02:45.3]} 10. Nge2 {[%clk 0:02:54.4]} 10... e6 {[%clk
0:02:29.7]} 11. O-O {[%clk 0:02:46.3]} 11... a6 {[%clk 0:02:25.8]} 12. Ng3
{[%clk 0:02:47]} 12... Qa5 {[%clk 0:02:19.9]} 13. Nce4 {[%clk 0:02:42]} 13... d5
{[%clk 0:02:14.3]} 14. Nxf6+ {[%clk 0:02:36.9]} 14... gxf6 {[%clk 0:02:16.2]}
15. Bd4 {[%clk 0:02:36.3]} 15... Be7 {[%clk 0:02:03]} 16. Nh5 {[%clk 0:02:32.5]}
16... e5 {[%clk 0:01:59]} 17. Bc3 {[%clk 0:02:28.2]} 17... Qd8 {[%clk
0:01:50.2]} 18. Ng7+ {[%clk 0:02:26.1]} 18... Kf8 {[%clk 0:01:49.4]} 19. Nh5
{[%clk 0:02:26.5]} 19... Rg8 {[%clk 0:01:38.4]} 20. Qf3 {[%clk 0:02:15.5]} 20...
Bg4 {[%clk 0:01:34.3]} 21. Qe3 {[%clk 0:02:11.8]} 21... Rg6 {[%clk 0:01:27.1]}
22. Ng3 {[%clk 0:01:51.7]} 22... d4 {[%clk 0:01:27.5]} 23. Qe4 {[%clk
0:01:47.8]} 23... dxc3 {[%clk 0:01:27.1]} 24. bxc3 {[%clk 0:01:48.9]} 24... Qc7
{[%clk 0:01:04.3]} 25. h3 {[%clk 0:01:45.9]} 25... Be6 {[%clk 0:01:04.4]} 26.
Rac1 {[%clk 0:01:37.5]} 26... Rd8 {[%clk 0:01:04.3]} 27. Nf5 {[%clk 0:01:35.1]}
27... Bxf5 {[%clk 0:00:57.7]} 28. Qxf5 {[%clk 0:01:34.8]} 28... Qd7 {[%clk
0:00:59.3]} 29. Qh5 {[%clk 0:01:34.4]} 29... Kg7 {[%clk 0:00:56.2]} 30. Rfd1
{[%clk 0:01:35.2]} 30... Qc6 {[%clk 0:00:53.2]} 31. Rxd8 {[%clk 0:01:35.5]}
31... Qxg2# {[%clk 0:00:53.2]} 0-1

[Event "*** Titled Tuesday Blitz"]
[Site "Chess.com"]
[Date "2019.10.01"]
[Round "1"]
[White "ExploringChess"]
[Black "ChessLover0108"]
[Result "1-0"]
[WhiteElo "2823"]
[BlackElo "2723"]
[TimeControl "180+2"]
[EndTime "13:06:00 PDT"]
[Termination "ExploringChess won by resignation"]

1. e4 {[%clk 0:02:55.7]} 1... c5 {[%clk 0:03:00.9]} 2. Nf3 {[%clk 0:02:44.6]}
2... d6 {[%clk 0:02:49]} 3. c3 {[%clk 0:02:42.4]} 3... Nf6 {[%clk 0:02:49.4]} 4.
h3 {[%clk 0:02:44.3]} 4... Nbd7 {[%clk 0:02:49]} 5. Bd3 {[%clk 0:02:44.3]} 5...
g6 {[%clk 0:02:49.9]} 6. Bc2 {[%clk 0:02:44.5]} 6... Bg7 {[%clk 0:02:48.8]} 7.
O-O {[%clk 0:02:46]} 7... O-O {[%clk 0:02:49.7]} 8. d4 {[%clk 0:02:45.7]} 8...
Qc7 {[%clk 0:02:45.3]} 9. Nbd2 {[%clk 0:02:44]} 9... b6 {[%clk 0:02:45.1]} 10.
Re1 {[%clk 0:02:44.7]} 10... e6 {[%clk 0:02:35.6]} 11. e5 {[%clk 0:02:39.5]}
11... dxe5 {[%clk 0:02:34.1]} 12. dxe5 {[%clk 0:02:41.4]} 12... Nd5 {[%clk
0:02:33.1]} 13. Qe2 {[%clk 0:02:35.8]} 13... Bb7 {[%clk 0:02:31.5]} 14. Nf1
{[%clk 0:02:36.4]} 14... Ne7 {[%clk 0:02:29]} 15. N1h2 {[%clk 0:02:35.4]} 15...
h5 {[%clk 0:02:18.5]} 16. Bg5 {[%clk 0:02:33.9]} 16... Nc6 {[%clk 0:02:07.9]}
17. Bf4 {[%clk 0:02:27.4]} 17... Rfd8 {[%clk 0:01:59.4]} 18. g4 {[%clk
0:02:25.1]} 18... hxg4 {[%clk 0:01:55.3]} 19. Nxg4 {[%clk 0:02:27]} 19... Ne7
{[%clk 0:01:56.5]} 20. Qe3 {[%clk 0:02:20.4]} 20... Nd5 {[%clk 0:01:39.2]} 21.
Qc1 {[%clk 0:02:20.5]} 21... Nxf4 {[%clk 0:01:39.6]} 22. Qxf4 {[%clk 0:02:19.4]}
22... Bxf3 {[%clk 0:01:40.4]} 23. Qxf3 {[%clk 0:02:17.2]} 23... Nxe5 {[%clk
0:00:48.7]} 24. Qg3 {[%clk 0:02:16.4]} 24... Rd2 {[%clk 0:00:38.5]} 25. Rac1
{[%clk 0:02:14.9]} 25... Rd5 {[%clk 0:00:21.5]} 26. Be4 {[%clk 0:02:12.2]} 26...
Rad8 {[%clk 0:00:21.4]} 27. Bxd5 {[%clk 0:02:05.2]} 27... Rxd5 {[%clk
0:00:23.3]} 28. Rcd1 {[%clk 0:02:06.6]} 28... Qd8 {[%clk 0:00:23.6]} 29. Rxd5
{[%clk 0:02:02.4]} 29... Qxd5 {[%clk 0:00:25]} 30. Nxe5 {[%clk 0:02:02.8]} 30...
Qxa2 {[%clk 0:00:26.5]} 31. Qf4 {[%clk 0:02:00.2]} 1-0

[Event "*** Titled Tuesday Blitz"]
[Site "Chess.com"]
[Date "2019.10.01"]
[Round "1"]
[White "Vojtap"]
[Black "SoltaniciR"]
[Result "0-1"]
[WhiteElo "2185"]
[BlackElo "2580"]
[TimeControl "180+2"]
[EndTime "13:06:02 PDT"]
[Termination "SoltaniciR won by resignation"]

1. e4 {[%clk 0:03:01.9]} 1... c5 {[%clk 0:03:00.5]} 2. Nf3 {[%clk 0:03:03]} 2...
d6 {[%clk 0:03:01.3]} 3. d4 {[%clk 0:03:04.4]} 3... cxd4 {[%clk 0:03:02.4]} 4.
Nxd4 {[%clk 0:03:06.3]} 4... Nf6 {[%clk 0:03:03.7]} 5. Nc3 {[%clk 0:03:06.9]}
5... a6 {[%clk 0:03:05.1]} 6. Bg5 {[%clk 0:03:07.6]} 6... e6 {[%clk 0:03:06.3]}
7. f4 {[%clk 0:03:08.6]} 7... Be7 {[%clk 0:03:07.9]} 8. Qf3 {[%clk 0:03:09.5]}
8... h6 {[%clk 0:03:09.5]} 9. Bh4 {[%clk 0:03:08]} 9... Qc7 {[%clk 0:03:10.5]}
10. O-O-O {[%clk 0:03:06.3]} 10... Nbd7 {[%clk 0:03:12]} 11. Kb1 {[%clk
0:02:49.6]} 11... b5 {[%clk 0:03:04.1]} 12. Bd3 {[%clk 0:02:49.3]} 12... b4
{[%clk 0:02:58.9]} 13. Nce2 {[%clk 0:02:43.6]} 13... Bb7 {[%clk 0:02:56.3]} 14.
g4 {[%clk 0:02:42.9]} 14... Nc5 {[%clk 0:02:41.1]} 15. Ng3 {[%clk 0:02:39.8]}
15... Nfxe4 {[%clk 0:02:41.6]} 16. Nxe4 {[%clk 0:02:37.5]} 16... Bxh4 {[%clk
0:02:42.6]} 17. f5 {[%clk 0:02:26.6]} 17... e5 {[%clk 0:02:36.5]} 18. Nb3 {[%clk
0:02:25.7]} 18... Nxd3 {[%clk 0:02:10.2]} 19. Nxd6+ {[%clk 0:02:08.2]} 19...
Qxd6 {[%clk 0:02:06.2]} 20. Qxb7 {[%clk 0:02:08.4]} 20... O-O {[%clk 0:01:32.4]}
21. Rxd3 {[%clk 0:02:05.4]} 21... Qe7 {[%clk 0:01:25.2]} 22. Qe4 {[%clk
0:02:00.7]} 22... a5 {[%clk 0:01:26.4]} 23. Rd5 {[%clk 0:01:52.6]} 23... a4
{[%clk 0:01:22.8]} 24. Nc5 {[%clk 0:01:50.5]} 24... b3 {[%clk 0:01:15.6]} 25.
cxb3 {[%clk 0:01:48.7]} 25... axb3 {[%clk 0:01:15.9]} 26. Nxb3 {[%clk 0:01:48]}
26... Rfb8 {[%clk 0:01:05.5]} 27. Rxe5 {[%clk 0:01:38.6]} 27... Qd7 {[%clk
0:00:45.2]} 28. Re7 {[%clk 0:01:27.8]} 28... Bxe7 {[%clk 0:00:43.3]} 0-1

[Event "*** Titled Tuesday Blitz"]
[Site "Chess.com"]
[Date "2019.10.01"]
[Round "1"]
[White "fidetrainerNET"]
[Black "Frolik67"]
[Result "1-0"]
[WhiteElo "2276"]
[BlackElo "2595"]
[TimeControl "180+2"]
[EndTime "13:06:07 PDT"]
[Termination "fidetrainerNET won by checkmate"]

1. d4 {[%clk 0:03:01.9]} 1... e6 {[%clk 0:02:57.2]} 2. c4 {[%clk 0:03:03.8]}
2... d5 {[%clk 0:02:57.8]} 3. Nf3 {[%clk 0:03:05.1]} 3... f5 {[%clk 0:02:57.1]}
4. Bg5 {[%clk 0:03:06.2]} 4... Nf6 {[%clk 0:02:58.4]} 5. Nc3 {[%clk 0:03:04]}
5... c6 {[%clk 0:02:59.6]} 6. Qb3 {[%clk 0:03:02.7]} 6... Bd6 {[%clk 0:02:59.7]}
7. Ne5 {[%clk 0:03:03]} 7... Nbd7 {[%clk 0:02:58.2]} 8. f4 {[%clk 0:03:03.3]}
8... O-O {[%clk 0:02:58.4]} 9. O-O-O {[%clk 0:03:03.5]} 9... Qa5 {[%clk
0:02:57.2]} 10. e3 {[%clk 0:03:02.7]} 10... Ne4 {[%clk 0:02:55.8]} 11. cxd5
{[%clk 0:03:00.5]} 11... exd5 {[%clk 0:02:51.4]} 12. Nxe4 {[%clk 0:02:53.9]}
12... fxe4 {[%clk 0:02:52]} 13. g4 {[%clk 0:02:43.7]} 13... Bxe5 {[%clk
0:02:42.7]} 14. fxe5 {[%clk 0:02:26.3]} 14... b5 {[%clk 0:02:36.9]} 15. h4
{[%clk 0:02:04.7]} 15... Nb6 {[%clk 0:02:37.1]} 16. Be2 {[%clk 0:01:36.1]} 16...
Rf2 {[%clk 0:02:35.8]} 17. Rhe1 {[%clk 0:01:08]} 17... Nc4 {[%clk 0:02:33.9]}
18. h5 {[%clk 0:01:05.9]} 18... Rxe2 {[%clk 0:02:30.8]} 19. Rxe2 {[%clk
0:01:05.1]} 19... Bxg4 {[%clk 0:02:32.3]} 20. Rg2 {[%clk 0:01:04.7]} 20... Bxd1
{[%clk 0:02:33.4]} 21. Qxd1 {[%clk 0:00:59.3]} 21... Qxa2 {[%clk 0:02:32.6]} 22.
Qg4 {[%clk 0:00:41.5]} 22... Qa1+ {[%clk 0:02:26.8]} 23. Kc2 {[%clk 0:00:41.9]}
23... Qxb2+ {[%clk 0:02:27.9]} 24. Kd1 {[%clk 0:00:42.6]} 24... Qb1+ {[%clk
0:02:17.8]} 25. Ke2 {[%clk 0:00:42.7]} 25... Qc2+ {[%clk 0:02:13.3]} 26. Kf1
{[%clk 0:00:42.9]} 26... Rf8+ {[%clk 0:02:14.3]} 27. Kg1 {[%clk 0:00:40.4]}
27... Qc1+ {[%clk 0:02:09.4]} 28. Kh2 {[%clk 0:00:40.1]} 28... Rf1 {[%clk
0:02:10]} 29. Qe6+ {[%clk 0:00:28.1]} 29... Rf7 {[%clk 0:02:07.8]} 30. Bf6
{[%clk 0:00:27.3]} 30... g6 {[%clk 0:01:53.3]} 31. hxg6 {[%clk 0:00:26.9]} 31...
hxg6 {[%clk 0:01:54.7]} 32. Rxg6+ {[%clk 0:00:26.9]} 32... Kf8 {[%clk
0:01:56.6]} 33. Qc8# {[%clk 0:00:24.5]} 1-0